fUSD/lending_fUSD_20250101
["ID","MTS","AMOUNT","RATE_DAILY","PERIOD"]
[347370091,1735738250746,-781.27465,0.00010958,2]
[347370092,1735738250763,-201.08535,0.00010958,2]
[347370093,1735738250773,-9867.84701982,0.00011,4]
[347370094,1735738250855,-116362.02185301,0.00011,4]
[347370095,1735738250866,-2367.26859173,0.00011,4]
[347370096,1735738250890,-6197.33498748,0.00011,4]
[347370097,1735738250901,-531.18699998,0.00011,4]
[347370098,1735738250912,-1146.65714572,0.00011,4]
[347370099,1735738252170,-8913.68804365,0.00011,4]
[347370100,1735738252348,-4858.11589993,0.00011,4]
[347370101,1735738252383,-5809.64591392,0.00011,4]
[347370102,1735738252394,-6064.0000005,0.00011,4]
[347370103,1735738252405,-252.77790372,0.00011,4]
[347370104,1735738252417,-47386.32095257,0.00011,4]
[347370105,1735738252428,-10730.70180181,0.00011,4]
[347370106,1735738252439,-49208.31856,0.00011,4]
[347370107,1735738252453,-265.32100023,0.00011,4]
[347370114,1735738434071,1057.0,9.705e-05,2]
[347370117,1735738608943,400.0,9.9e-05,3]
[347370118,1735738610496,800.0,0.0001,3]
[347370119,1735738629158,-4406.23,0.00010017,2]
[347370120,1735738629182,-949.162977,0.00010062,2]
[347370121,1735738635856,282.9591476,9.962e-05,2]
[347370122,1735738636909,-9318.705023,0.00010062,2]
[347370123,1735738636932,-681.294977,0.000101,3]
[347370124,1735738737134,-518.705023,0.000101,3]
[347370125,1735738741514,412.42,8.219e-05,2]
[347370126,1735738803815,162.0,9.705e-05,30]
[347370127,1735738804130,162.0,0.00011242,30]
[347370128,1735738804468,162.0,0.00012779,30]
[347370129,1735738805681,162.0,0.00014316,30]
[347370130,1735738810893,780.58,9.875e-05,2]
[347370132,1735738856283,5968.55,9.861e-05,2]
[347370133,1735738880061,2319.744977,9.867e-05,2]
[347370134,1735738880091,16627.885023,9.867e-05,2]
[347370135,1735738888498,200.0,9.863e-05,2]
[347370136,1735738965863,250.0,9.831e-05,2]
[347370137,1735738981519,716.27,9.91e-05,2]
[347370138,1735739103705,163.0,9.705e-05,30]
[347370139,1735739103844,150.0,9.888e-05,2]
[347370140,1735739103921,163.0,0.00012779,30]
[347370141,1735739104054,150.0,9.966e-05,2]
[347370142,1735739110482,150.0,9.888e-05,2]
[347370143,1735739119993,150.0,9.888e-05,2]
[347370144,1735739141835,150.0,9.888e-05,2]
[347370145,1735739164411,166.6,9.941e-05,2]
[347370146,1735739203414,250.0,9.623e-05,2]
[347370147,1735739232457,10131.90055229,0.0001,2]
[347370148,1735739253182,300.0,9.9e-05,3]
[347370149,1735739255309,600.0,0.0001,3]
[347370150,1735739256535,1000.0,9.676e-05,2]
[347370152,1735739351302,6524.69,9.548e-05,2]
[347370153,1735739366459,274.72,9.548e-05,2]
[347370154,1735739403327,164.0,9.705e-05,30]
[347370155,1735739428780,192.0,9.56e-05,2]
[347370161,1735739432214,-150.0,0.00010045,2]
[347370162,1735739432224,-150.0,0.00010045,2]
[347370163,1735739432234,-150.0,0.00010071,2]
[347370164,1735739432244,-900.0,0.000101,3]
[347370165,1735739432253,-150.0,0.00010123,2]
[347370166,1735739432263,-7201.46776175,0.00010131,2]
[347370167,1735739432274,-1911.53223825,0.00010131,2]
[347370168,1735739432283,-156.72,0.00010137,2]
[347370169,1735739432294,-1200.0,0.000102,3]
[347370170,1735739432304,-150.0,0.00010202,2]
[347370171,1735739432314,-150.0,0.00010202,2]
[347370172,1735739432323,-1057.0,0.00010216,2]
[347370173,1735739432334,-150.0,0.00010254,2]
[347370174,1735739432343,-150.0,0.0001028,2]
[347370175,1735739432353,-1500.0,0.000103,3]
[347370176,1735739432362,-150.0,0.00010359,2]
[347370177,1735739432371,-150.0,0.00010359,2]
[347370178,1735739432380,-300.0,0.000104,3]
[347370179,1735739432390,-150.0,0.00010437,2]
[347370180,1735739432400,-150.0,0.00010437,2]
[347370181,1735739432410,-150.0,0.00010437,2]
[347370182,1735739432419,-157.86,0.0001045,2]
[347370183,1735739432429,-412.42,0.00010472,2]
[347370184,1735739432439,-2571.53,0.00010475,2]
[347370185,1735739432450,-300.0,0.000105,3]
[347370186,1735739432460,-150.0,0.00010515,2]
[347370187,1735739432469,-150.0,0.00010515,2]
[347370188,1735739432479,-501.9,0.00010578,2]
[347370189,1735739432488,-168.14,0.00010578,2]
[347370190,1735739432498,-150.0,0.00010594,2]
[347370191,1735739432507,-300.0,0.000106,3]
[347370192,1735739432517,-150.0,0.0001062,2]
[347370193,1735739432526,-150.0,0.00010672,2]
[347370194,1735739432536,-150.0,0.00010672,2]
[347370195,1735739432545,-496.98,0.00010696,2]
[347370197,1735739432555,-287.2179,0.000107,2]
[347370198,1735739432564,-300.0,0.000107,3]
[347370199,1735739432573,-500.0,0.0001074,2]
[347370200,1735739432582,-150.0,0.00010751,2]
[347370201,1735739432592,-1057.0,0.00010754,2]
[347370202,1735739432601,-1181.087,0.00010754,2]
[347370203,1735739432612,-33096.40173512,0.000108,2]
[347370204,1735739432641,-262.76248,0.000108,2]
[347370205,1735739432652,-312.69458048,0.000108,2]
[347370207,1735739432669,-313.64471431,0.000108,2]
[347370215,1735739432740,-3819.97534348,0.000108,2]
[347370237,1735739438135,-564746.44170667,0.000108,2]
[347370238,1735739438145,-300.0,0.000108,3]
[347370239,1735739438154,-150.0,0.00010803,2]
[347370240,1735739438163,-150.0,0.00010829,2]
[347370241,1735739438172,-150.0,0.00010829,2]
[347370242,1735739438182,-488.7232,0.00010858,2]
[347370243,1735739438191,-1000.0,0.00010885,2]
[347370244,1735739438200,-500.0,0.00010899,2]
[347370245,1735739438209,-551.09207164,0.00010899,2]
[347370246,1735739438219,-500.31,0.000109,2]
[347370247,1735739438229,-337376.70780377,0.000109,2]
[347370248,1735739438238,-603.56917515,0.000109,2]
[347370249,1735739438247,-150.0,0.00010908,2]
[347370250,1735739438257,-1386.0,0.00010958,2]
[347370251,1735739438266,-10003.16,0.00010958,2]
[347370252,1735739438275,-500.0,0.00010958,2]
[347370253,1735739438285,-2977.07,0.00010958,2]
[347370254,1735739438295,-2588.08,0.00010958,2]
[347370255,1735739438304,-500.0,0.00010958,2]
[347370256,1735739438314,-2266.8,0.00010958,2]
[347370257,1735739438324,-1949.47,0.00010958,2]
[347370258,1735739438334,-533.19,0.00010958,2]
[347370259,1735739438343,-1812.18,0.00010958,2]
[347370260,1735739438353,-500.0,0.00010958,2]
[347370261,1735739438362,-346.11751151,0.00010958,2]
[347370262,1735739438372,-699.08,0.00010958,2]
[347370263,1735739438381,-953.15,0.00010958,2]
[347370264,1735739438391,-432.2273456,0.00010958,2]
[347370265,1735739438400,-565.17,0.00010958,2]
[347370266,1735739438409,-1758.35,0.00010958,2]
[347370267,1735739438419,-500.0,0.00010958,2]
[347370268,1735739438428,-615.09,0.00010958,2]
[347370269,1735739438438,-895.01,0.00010958,2]
[347370270,1735739438447,-500.0,0.00010958,2]
[347370271,1735739438456,-1500.98,0.00010958,2]
[347370272,1735739438465,-822.05,0.00010958,2]
[347370273,1735739438474,-658.32,0.00010958,2]
[347370275,1735739438483,-500.0,0.00010958,2]
[347370277,1735739438493,-2112.87,0.00010958,2]
[347370279,1735739438502,-500.0,0.00010958,2]
[347370281,1735739438511,-1291.64,0.00010958,2]
[347370283,1735739438521,-500.0,0.00010958,2]
[347370285,1735739438530,-500.0,0.00010958,2]
[347370287,1735739438540,-1203.7,0.00010958,2]
[347370289,1735739438549,-606.83,0.00010958,2]
[347370291,1735739438558,-500.0,0.00010958,2]
[347370294,1735739438567,-500.0,0.00010958,2]
[347370295,1735739438576,-500.0,0.00010958,2]
[347370296,1735739438586,-1438.85,0.00010958,2]
[347370297,1735739438595,-500.0,0.00010958,2]
[347370298,1735739438604,-750.64,0.00010958,2]
[347370299,1735739438614,-500.0,0.00010958,2]
[347370300,1735739438629,-500.0,0.00010958,2]
[347370301,1735739438648,-794.95,0.00010958,2]
[347370302,1735739438659,-500.0,0.00010958,2]
[347370303,1735739438668,-644.79,0.00010958,2]
[347370304,1735739438678,-500.0,0.00010958,2]
[347370305,1735739438687,-500.0,0.00010958,2]
[347370306,1735739438697,-500.0,0.00010958,2]
[347370307,1735739438714,-500.0,0.00010958,2]
[347370308,1735739438725,-679.0,0.00010958,2]
[347370309,1735739438735,-541.67718655,0.00010958,2]
[347370310,1735739438743,-2057.97,0.00010958,2]
[347370311,1735739438752,-500.0,0.00010958,2]
[347370312,1735739438764,-500.0,0.00010958,2]
[347370313,1735739438773,-500.0,0.00010958,2]
[347370314,1735739438782,-500.0,0.00010958,2]
[347370315,1735739438791,-564.24,0.00010958,2]
[347370316,1735739438801,-516.92,0.00010958,2]
[347370317,1735739438810,-500.0,0.00010958,2]
[347370318,1735739438820,-556.94,0.00010958,2]
[347370319,1735739438829,-500.0,0.00010958,2]
[347370320,1735739438838,-500.0,0.00010958,2]
[347370321,1735739438847,-500.0,0.00010958,2]
[347370322,1735739438855,-500.0,0.00010958,2]
[347370323,1735739438864,-5403.73,0.00010958,2]
[347370324,1735739438874,-374.47112918,0.00010958,2]
[347370325,1735739438884,-1287.23,0.00010958,2]
[347370326,1735739438893,-500.0,0.00010958,2]
[347370327,1735739438902,-753.83,0.00010958,2]
[347370328,1735739438911,-500.0,0.00010958,2]
[347370329,1735739438920,-1413.06,0.00010958,2]
[347370330,1735739438929,-544.64,0.00010958,2]
[347370331,1735739438938,-500.0,0.00010958,2]
[347370332,1735739438947,-1220.21,0.00010958,2]
[347370333,1735739438956,-500.0,0.00010958,2]
[347370334,1735739438965,-500.0,0.00010958,2]
[347370335,1735739438975,-500.0,0.00010958,2]
[347370336,1735739438984,-839.56,0.00010958,2]
[347370337,1735739438993,-500.0,0.00010958,2]
[347370338,1735739439002,-822.55,0.00010958,2]
[347370339,1735739439011,-500.0,0.00010958,2]
[347370340,1735739439020,-500.0,0.00010958,2]
[347370341,1735739439029,-532.15,0.00010958,2]
[347370342,1735739439038,-500.0,0.00010958,2]
[347370343,1735739439047,-500.0,0.00010958,2]
[347370344,1735739439056,-3674.81,0.00010958,2]
[347370345,1735739439065,-500.0,0.00010958,2]
[347370346,1735739439075,-557.22,0.00010958,2]
[347370347,1735739439084,-500.0,0.00010958,2]
[347370348,1735739439093,-500.0,0.00010958,2]
[347370349,1735739439102,-500.0,0.00010958,2]
[347370350,1735739439111,-1217.64,0.00010958,2]
[347370351,1735739439121,-500.0,0.00010958,2]
[347370352,1735739439130,-1900.12,0.00010958,2]
[347370353,1735739439139,-500.0,0.00010958,2]
[347370354,1735739439148,-500.0,0.00010958,2]
[347370355,1735739439157,-500.0,0.00010958,2]
[347370356,1735739439166,-831.56,0.00010958,2]
[347370357,1735739439175,-560.76,0.00010958,2]
[347370358,1735739439185,-613.04,0.00010958,2]
[347370359,1735739439194,-10016.11,0.00010958,2]
[347370360,1735739439204,-500.0,0.00010958,2]
[347370361,1735739439213,-500.0,0.00010958,2]
[347370362,1735739439222,-540.55826794,0.00010958,2]
[347370363,1735739439232,-500.0,0.00010958,2]
[347370364,1735739439241,-500.0,0.00010958,2]
[347370365,1735739439250,-600.34,0.00010958,2]
[347370366,1735739439259,-1070.69,0.00010958,2]
[347370367,1735739439268,-500.0,0.00010958,2]
[347370368,1735739439277,-500.0,0.00010958,2]
[347370369,1735739439289,-1371.66,0.00010958,2]
[347370370,1735739439299,-500.0,0.00010958,2]
[347370371,1735739439307,-597.37,0.00010958,2]
[347370372,1735739439316,-500.0,0.00010958,2]
[347370373,1735739439326,-500.0,0.00010958,2]
[347370374,1735739439335,-1431.65,0.00010958,2]
[347370375,1735739439344,-1905.07,0.00010958,2]
[347370376,1735739439353,-500.0,0.00010958,2]
[347370377,1735739439363,-661.51,0.00010958,2]
[347370378,1735739439372,-500.0,0.00010958,2]
[347370379,1735739439381,-556.18,0.00010958,2]
[347370380,1735739439390,-819.47,0.00010958,2]
[347370381,1735739439400,-1455.28,0.00010958,2]
[347370382,1735739439409,-500.0,0.00010958,2]
[347370383,1735739439418,-682.49,0.00010958,2]
[347370384,1735739439427,-500.0,0.00010958,2]
[347370385,1735739439436,-532.17,0.00010958,2]
[347370386,1735739439445,-500.0,0.00010958,2]
[347370387,1735739439455,-1152.9,0.00010958,2]
[347370388,1735739439463,-1689.12,0.00010958,2]
[347370389,1735739439472,-500.0,0.00010958,2]
[347370390,1735739439481,-500.0,0.00010958,2]
[347370391,1735739439490,-500.0,0.00010958,2]
[347370392,1735739439499,-646.65,0.00010958,2]
[347370393,1735739439508,-765.44,0.00010958,2]
[347370394,1735739439518,-500.0,0.00010958,2]
[347370395,1735739439527,-500.0,0.00010958,2]
[347370396,1735739439536,-1207.75,0.00010958,2]
[347370397,1735739439546,-500.0,0.00010958,2]
[347370398,1735739439556,-500.0,0.00010958,2]
[347370399,1735739439565,-500.0,0.00010958,2]
[347370400,1735739439576,-927.79,0.00010958,2]
[347370401,1735739439585,-593.50798361,0.00010958,2]
[347370402,1735739439595,-500.0,0.00010958,2]
[347370403,1735739439604,-668.77,0.00010958,2]
[347370404,1735739439613,-1105.23,0.00010958,2]
[347370405,1735739439626,-1457.87,0.00010958,2]
[347370406,1735739439636,-500.0,0.00010958,2]
[347370407,1735739439645,-843.11,0.00010958,2]
[347370408,1735739439654,-500.0,0.00010958,2]
[347370409,1735739439663,-500.0,0.00010958,2]
[347370410,1735739439675,-500.0,0.00010958,2]
[347370411,1735739439686,-500.0,0.00010958,2]
[347370412,1735739439696,-768.67,0.00010958,2]
[347370413,1735739439706,-503.66,0.00010958,2]
[347370414,1735739439715,-558.64,0.00010958,2]
[347370415,1735739439724,-500.0,0.00010958,2]
[347370416,1735739439733,-500.0,0.00010958,2]
[347370417,1735739439743,-1279.51,0.00010958,2]
[347370418,1735739439752,-650.69,0.00010958,2]
[347370419,1735739439762,-932.14,0.00010958,2]
[347370420,1735739439771,-2048.52,0.00010958,2]
[347370421,1735739439780,-514.47,0.00010958,2]
[347370422,1735739439789,-861.101506,0.00010958,2]
[347370423,1735739439798,-500.0,0.00010958,2]
[347370424,1735739439807,-500.0,0.00010958,2]
[347370425,1735739439817,-500.0,0.00010958,2]
[347370426,1735739439826,-500.0,0.00010958,2]
[347370427,1735739439835,-509.61,0.00010958,2]
[347370428,1735739439844,-155.490194,0.00010958,2]
[347370429,1735739439854,-500.0,0.00010958,2]
[347370430,1735739439863,-2123.4,0.00010958,2]
[347370431,1735739439872,-500.0,0.00010958,2]
[347370432,1735739439881,-594.35,0.00010958,2]
[347370433,1735739439890,-500.0,0.00010958,2]
[347370434,1735739439899,-1230.09,0.00010958,2]
[347370435,1735739439908,-773.86,0.00010958,2]
[347370436,1735739439918,-500.0,0.00010958,2]
[347370437,1735739439927,-286.40985432,0.00010958,2]
[347370438,1735739439936,-2266.86,0.00010958,2]
[347370439,1735739439945,-500.0,0.00010958,2]
[347370440,1735739439954,-500.0,0.00010958,2]
[347370441,1735739439963,-1581.99,0.00010958,2]
[347370442,1735739439973,-500.0,0.00010958,2]
[347370443,1735739439982,-2336.82,0.00010958,2]
[347370444,1735739439991,-500.0,0.00010958,2]
[347370445,1735739439999,-500.0,0.00010958,2]
[347370446,1735739440009,-1213.452027,0.00010958,2]
[347370447,1735739440019,-945.34,0.00010958,2]
[347370449,1735739440028,-1666.21,0.00010958,2]
[347370450,1735739440036,-707.73,0.00010958,2]
[347370451,1735739440045,-500.0,0.00010958,2]
[347370453,1735739440054,-965.78,0.00010958,2]
[347370454,1735739440064,-2120.48,0.00010958,2]
[347370456,1735739440073,-500.0,0.00010958,2]
[347370457,1735739440082,-1609.92,0.00010958,2]
[347370458,1735739440091,-500.0,0.00010958,2]
[347370459,1735739440100,-1036.85,0.00010958,2]
[347370460,1735739440109,-500.0,0.00010958,2]
[347370461,1735739440118,-500.0,0.00010958,2]
[347370462,1735739440127,-500.0,0.00010958,2]
[347370463,1735739440137,-500.0,0.00010958,2]
[347370464,1735739440146,-1407.16,0.00010958,2]
[347370465,1735739440156,-1148.25,0.00010958,2]
[347370466,1735739440165,-500.0,0.00010958,2]
[347370467,1735739440174,-500.0,0.00010958,2]
[347370468,1735739440184,-500.0,0.00010958,2]
[347370469,1735739440194,-727.72,0.00010958,2]
[347370470,1735739440204,-500.0,0.00010958,2]
[347370471,1735739440213,-500.0,0.00010958,2]
[347370472,1735739440222,-3482.61,0.00010958,2]
[347370473,1735739440231,-1280.86,0.00010958,2]
[347370474,1735739440241,-1229.89,0.00010958,2]
[347370475,1735739440250,-500.0,0.00010958,2]
[347370476,1735739440259,-1144.34,0.00010958,2]
[347370477,1735739440269,-500.0,0.00010958,2]
[347370478,1735739440278,-715.59,0.00010958,2]
[347370479,1735739440287,-500.0,0.00010958,2]
[347370480,1735739440295,-798.85,0.00010958,2]
[347370481,1735739440305,-2314.36,0.00010958,2]
[347370482,1735739440316,-1253.26,0.00010958,2]
[347370483,1735739440326,-500.0,0.00010958,2]
[347370484,1735739440335,-500.0,0.00010958,2]
[347370485,1735739440345,-500.0,0.00010958,2]
[347370486,1735739440354,-1519.29,0.00010958,2]
[347370487,1735739440363,-500.0,0.00010958,2]
[347370488,1735739440372,-500.0,0.00010958,2]
[347370489,1735739440381,-797.97,0.00010958,2]
[347370490,1735739440390,-817.12,0.00010958,2]
[347370491,1735739440400,-518.07,0.00010958,2]
[347370492,1735739440409,-1936.2,0.00010958,2]
[347370493,1735739440419,-500.0,0.00010958,2]
[347370494,1735739440428,-1130.62,0.00010958,2]
[347370495,1735739440438,-759.29,0.00010958,2]
[347370496,1735739440447,-500.0,0.00010958,2]
[347370497,1735739440458,-500.0,0.00010958,2]
[347370498,1735739440467,-1787.5,0.00010958,2]
[347370499,1735739440477,-1990.93,0.00010958,2]
[347370500,1735739440486,-626.63,0.00010958,2]
[347370501,1735739440496,-425.56140574,0.00010958,2]
[347370502,1735739440505,-500.0,0.00010958,2]
[347370504,1735739440515,-15498.0,0.00010958,2]
[347370505,1735739440524,-500.0,0.00010958,2]
[347370506,1735739440533,-500.0,0.00010958,2]
[347370507,1735739440543,-1160.41,0.00010958,2]
[347370508,1735739440552,-500.0,0.00010958,2]
[347370509,1735739440561,-1319.18,0.00010958,2]
[347370510,1735739440570,-764.03,0.00010958,2]
[347370511,1735739440579,-760.59,0.00010958,2]
[347370512,1735739440588,-1878.69,0.00010958,2]
[347370513,1735739440597,-500.0,0.00010958,2]
[347370514,1735739440607,-1214.34,0.00010958,2]
[347370516,1735739440616,-500.0,0.00010958,2]
[347370518,1735739440625,-1169.02,0.00010958,2]
[347370520,1735739440637,-555.58,0.00010958,2]
[347370522,1735739440647,-500.0,0.00010958,2]
[347370523,1735739440656,-1333.85,0.00010958,2]
[347370524,1735739440665,-4149.3,0.00010958,2]
[347370525,1735739440676,-500.0,0.00010958,2]
[347370526,1735739440684,-1028.73,0.00010958,2]
[347370527,1735739440694,-1838.37,0.00010958,2]
[347370528,1735739440704,-500.0,0.00010958,2]
[347370529,1735739440714,-1662.98,0.00010958,2]
[347370530,1735739440724,-2266.45,0.00010958,2]
[347370531,1735739440937,-500.0,0.00010958,2]
[347370532,1735739440998,-867.84,0.00010958,2]
[347370533,1735739441007,-2244.07,0.00010958,2]
[347370534,1735739441016,-500.0,0.00010958,2]
[347370535,1735739441025,-595.34,0.00010958,2]
[347370536,1735739441035,-500.0,0.00010958,2]
[347370537,1735739441043,-650.26,0.00010958,2]
[347370538,1735739441052,-500.0,0.00010958,2]
[347370539,1735739441062,-738.95,0.00010958,2]
[347370540,1735739441071,-2156.17,0.00010958,2]
[347370541,1735739441080,-540.86,0.00010958,2]
[347370542,1735739441089,-1559.74,0.00010958,2]
[347370543,1735739441098,-500.0,0.00010958,2]
[347370544,1735739441107,-1102.74,0.00010958,2]
[347370545,1735739441117,-3290.2,0.00010958,2]
[347370546,1735739441126,-647.47,0.00010958,2]
[347370547,1735739441135,-714.13,0.00010958,2]
[347370548,1735739441144,-1424.1,0.00010958,2]
[347370549,1735739441153,-500.0,0.00010958,2]
[347370550,1735739441163,-527.51,0.00010958,2]
[347370551,1735739441172,-500.0,0.00010958,2]
[347370552,1735739441181,-1550.16,0.00010958,2]
[347370553,1735739441191,-4183.79,0.00010958,2]
[347370554,1735739441200,-2687.19,0.00010958,2]
[347370555,1735739441209,-677.25,0.00010958,2]
[347370556,1735739441218,-500.0,0.00010958,2]
[347370557,1735739441227,-1809.36,0.00010958,2]
[347370558,1735739441237,-500.0,0.00010958,2]
[347370559,1735739441246,-500.0,0.00010958,2]
[347370560,1735739441255,-1735.18,0.00010958,2]
[347370561,1735739441264,-500.0,0.00010958,2]
[347370562,1735739441273,-500.0,0.00010958,2]
[347370563,1735739441282,-278.52165877,0.00010958,2]
[347370564,1735739441291,-1827.56,0.00010958,2]
[347370565,1735739441300,-500.0,0.00010958,2]
[347370566,1735739441309,-1177.24,0.00010958,2]
[347370567,1735739441318,-500.0,0.00010958,2]
[347370568,1735739441327,-500.0,0.00010958,2]
[347370569,1735739441335,-2183.86,0.00010958,2]
[347370570,1735739441345,-500.0,0.00010958,2]
[347370571,1735739441354,-1591.18,0.00010958,2]
[347370572,1735739441363,-989.51,0.00010958,2]
[347370573,1735739441372,-500.0,0.00010958,2]
[347370574,1735739441381,-1032.46,0.00010958,2]
[347370575,1735739441390,-637.4,0.00010958,2]
[347370576,1735739441399,-500.0,0.00010958,2]
[347370577,1735739441408,-640.67,0.00010958,2]
[347370578,1735739441417,-500.0,0.00010958,2]
[347370579,1735739441426,-733.32,0.00010958,2]
[347370580,1735739441435,-500.0,0.00010958,2]
[347370581,1735739441444,-500.0,0.00010958,2]
[347370582,1735739441453,-4762.18,0.00010958,2]
[347370583,1735739441463,-500.0,0.00010958,2]
[347370584,1735739441472,-500.0,0.00010958,2]
[347370585,1735739441481,-539.45,0.00010958,2]
[347370586,1735739441490,-628.46,0.00010958,2]
[347370587,1735739441499,-1223.84,0.00010958,2]
[347370588,1735739441508,-1577.06,0.00010958,2]
[347370589,1735739441518,-814.39,0.00010958,2]
[347370590,1735739441527,-1506.44,0.00010958,2]
[347370591,1735739441536,-500.0,0.00010958,2]
[347370592,1735739441545,-508.58,0.00010958,2]
[347370593,1735739441554,-500.0,0.00010958,2]
[347370594,1735739441563,-1049.04,0.00010958,2]
[347370595,1735739441573,-754.5,0.00010958,2]
[347370596,1735739441582,-779.44,0.00010958,2]
[347370597,1735739441592,-500.0,0.00010958,2]
[347370598,1735739441601,-543.0,0.00010958,2]
[347370599,1735739441610,-1170.99,0.00010958,2]
[347370600,1735739441619,-500.0,0.00010958,2]
[347370601,1735739441633,-1814.29,0.00010958,2]
[347370602,1735739441642,-500.0,0.00010958,2]
[347370603,1735739441651,-500.0,0.00010958,2]
[347370604,1735739441660,-500.0,0.00010958,2]
[347370605,1735739441670,-500.0,0.00010958,2]
[347370606,1735739441679,-1578.63,0.00010958,2]
[347370607,1735739441689,-2228.88,0.00010958,2]
[347370608,1735739441699,-1686.74,0.00010958,2]
[347370609,1735739441708,-1158.25,0.00010958,2]
[347370610,1735739441718,-500.0,0.00010958,2]
[347370611,1735739441727,-500.0,0.00010958,2]
[347370612,1735739441737,-1103.95,0.00010958,2]
[347370613,1735739441746,-500.0,0.00010958,2]
[347370614,1735739441755,-1806.41,0.00010958,2]
[347370615,1735739441765,-500.0,0.00010958,2]
[347370616,1735739441774,-500.0,0.00010958,2]
[347370617,1735739441783,-4068.75,0.00010958,2]
[347370618,1735739441792,-500.0,0.00010958,2]
[347370619,1735739441802,-500.0,0.00010958,2]
[347370620,1735739441811,-566.77,0.00010958,2]
[347370621,1735739441820,-950.27,0.00010958,2]
[347370622,1735739441829,-1766.4,0.00010958,2]
[347370623,1735739441840,-605.37,0.00010958,2]
[347370624,1735739441849,-500.0,0.00010958,2]
[347370625,1735739441858,-938.94,0.00010958,2]
[347370626,1735739441868,-500.0,0.00010958,2]
[347370627,1735739441877,-1233.89,0.00010958,2]
[347370628,1735739441886,-802.15,0.00010958,2]
[347370629,1735739441895,-589.85,0.00010958,2]
[347370630,1735739441904,-942.97,0.00010958,2]
[347370631,1735739441914,-1320.15,0.00010958,2]
[347370632,1735739441923,-876.36,0.00010958,2]
[347370633,1735739441932,-2402.99,0.00010958,2]
[347370634,1735739441941,-1215.66,0.00010958,2]
[347370635,1735739441951,-569.09,0.00010958,2]
[347370636,1735739441960,-808.47,0.00010958,2]
[347370637,1735739441971,-500.0,0.00010958,2]
[347370638,1735739441980,-174.22188404,0.00010958,2]
[347370639,1735739441989,-875.42,0.00010958,2]
[347370640,1735739441998,-633.31,0.00010958,2]
[347370641,1735739442007,-500.0,0.00010958,2]
[347370642,1735739442016,-761.94,0.00010958,2]
[347370643,1735739442025,-500.0,0.00010958,2]
[347370644,1735739442034,-1318.65,0.00010958,2]
[347370645,1735739442043,-1305.98,0.00010958,2]
[347370646,1735739442052,-500.0,0.00010958,2]
[347370647,1735739442061,-866.97,0.00010958,2]
[347370648,1735739442071,-500.0,0.00010958,2]
[347370649,1735739442081,-1737.41,0.00010958,2]
[347370650,1735739442090,-4526.48,0.00010958,2]
[347370651,1735739442099,-803.99,0.00010958,2]
[347370652,1735739442108,-1630.68,0.00010958,2]
[347370653,1735739442119,-575.10197888,0.00010958,2]
[347370654,1735739442129,-967.58,0.00010958,2]